bitfinex/quotes_ETHUSD_20241231
["timestamp","ask_amount","ask_price","bid_price","bid_amount"]
[1735660385488,2.92158,3422.8,3421.8,3.290964]
[1735660385702,2.92158,3422.8,3421.9,0.4053964]
[1735660386239,2.92158,3422.8,3422.0,0.763]
[1735660387093,1.82601148,3422.9,3422.0,0.763]
[1735660387291,4.74759148,3422.9,3422.0,0.763]
[1735660387493,2.92158,3422.9,3422.0,0.763]
[1735660387717,2.92158,3422.9,3422.0,1.17207264]
[1735660387918,4.64002324,3423.0,3422.0,1.17207264]
[1735660388119,2.92169,3422.7,3422.0,0.763]
[1735660388315,2.81401176,3422.7,3422.0,0.763]
[1735660388518,2.92194,3422.4,3422.0,0.763]
[1735660388719,2.81401176,3422.4,3421.7,0.763]
[1735660389037,2.92236,3421.9,3421.2,0.763]
[1735660389239,2.92269,3421.6,3421.2,0.763]
[1735660389484,2.92269,3421.6,3421.1,1.22221278]
[1735660389850,2.92269,3421.6,3420.9,0.763]
[1735660390149,3.59711176,3421.8,3420.9,0.763]
[1735660390150,2.81401176,3421.5,3420.9,0.763]
[1735660390351,2.92286,3421.4,3420.6,0.763]
[1735660390494,2.92286,3421.4,3420.6,1.4372172]
[1735660390690,2.92297,3421.2,3420.6,1.4372172]
[1735660391052,2.81401176,3421.5,3420.6,0.763]
[1735660391200,5.73676176,3421.5,3420.6,0.763]
[1735660391401,2.81401176,3421.5,3420.6,0.763]
[1735660391644,2.92278,3421.4,3420.6,0.763]
[1735660391840,2.92292,3421.3,3420.6,0.763]
[1735660392211,2.92292,3421.3,3420.6,1.131669]
[1735660392608,1.82601148,3421.4,3420.6,1.131669]
[1735660392817,6.52009176,3421.2,3420.6,0.763]
[1735660393029,2.92315,3421.0,3420.2,0.763]
[1735660394795,3.59711176,3421.2,3420.2,0.763]
[1735660395196,2.81401176,3420.9,3420.2,0.763]
[1735660395397,2.81401176,3420.9,3419.8,0.763]
[1735660395710,2.81401176,3420.9,3419.9,0.4133758]
[1735660396044,2.81401176,3420.9,3420.0,2.92395]
[1735660396708,1.82601148,3421.1,3420.3,0.763]
[1735660397364,2.81401176,3420.7,3420.0,0.763]
[1735660397516,6.01886294,3420.7,3420.0,0.763]
[1735660397711,2.81401176,3420.4,3420.0,0.763]
[1735660397953,2.81401176,3420.4,3419.0,0.763]
[1735660398149,2.81401176,3420.1,3419.0,3.68782]
[1735660398368,2.81401176,3419.8,3419.0,3.68782]
[1735660398516,0.7831,3420.5,3419.0,3.68782]
[1735660398517,2.81401176,3420.1,3419.1,0.368782]
[1735660398717,2.81401176,3420.1,3419.0,0.763]
[1735660398718,0.7831,3420.5,3419.5,0.763]
[1735660398969,0.7831,3420.5,3419.5,3.68738]
[1735660399265,0.7831,3420.5,3419.6,2.92429]
[1735660399612,1.83883384,3420.6,3419.7,0.763]
[1735660399819,1.83883384,3420.6,3420.3,0.763]
[1735660400124,1.83883384,3420.6,3420.5,2.92354]
[1735660400623,1.83883384,3421.1,3420.5,2.92354]
[1735660400838,1.83883384,3421.1,3420.3,4.055366]
[1735660401258,1.83883384,3421.1,3420.4,2.9236]
[1735660401419,1.83883384,3421.1,3420.5,2.92353]
[1735660401626,1.83883384,3421.1,3420.6,0.4055206]
[1735660401926,2.62193384,3421.6,3420.6,0.4055206]
[1735660402154,2.92269,3421.5,3420.6,0.4055206]
[1735660402936,2.92269,3421.5,3420.3,0.763]
[1735660403271,2.92269,3421.5,3420.4,2.92359]
[1735660403942,0.7616,3421.0,3420.3,0.763]
[1735660404143,5.73737176,3420.8,3419.9,0.7695]
[1735660404340,2.92336,3420.8,3419.9,1.138881]
[1735660404720,2.92349,3420.6,3419.9,1.138881]
[1735660404922,2.92355,3420.5,3419.5,3.69386]
[1735660405125,2.92338,3420.7,3419.6,2.9243]
[1735660405376,2.92323,3420.9,3419.8,2.92409]
[1735660405670,4.3482196,3421.0,3419.9,0.7695]
[1735660405975,2.9233,3420.8,3419.9,0.7695]
[1735660406123,5.73731176,3420.8,3420.0,0.33971536]
[1735660406322,5.73731176,3420.8,3419.9,0.7695]
[1735660407250,2.81401176,3420.8,3419.9,0.7695]
[1735660407449,2.92353,3420.6,3419.9,0.7695]
[1735660407970,2.81401176,3420.8,3419.9,0.7695]
[1735660408269,2.92364,3420.4,3419.9,0.7695]
[1735660408642,5.73734176,3420.8,3419.9,0.7695]
[1735660409159,2.92352,3420.6,3419.9,0.7695]
[1735660409596,2.92332,3420.8,3419.9,0.7695]
[1735660409938,4.83883384,3420.9,3419.9,3.69352]
[1735660410139,1.83883384,3420.9,3419.9,3.69352]
[1735660410442,2.92323,3420.9,3419.9,3.69352]
[1735660410984,3.7616,3421.0,3419.9,1.138852]
[1735660411185,2.92366,3420.4,3419.9,0.7695]
[1735660411686,2.92348,3420.6,3419.9,0.7695]
[1735660412208,2.92354,3420.6,3419.9,0.7695]
[1735660412363,2.92355,3420.5,3419.9,0.7695]
[1735660413039,2.92372,3420.3,3419.5,0.7695]
[1735660413244,2.92348,3420.6,3419.7,2.92422]
[1735660413462,2.92348,3420.6,3419.8,0.7695]
[1735660414212,0.7616,3420.8,3419.8,0.7695]
[1735660414397,2.9235,3420.6,3419.8,0.7695]
[1735660414703,2.92355,3420.5,3419.8,0.7695]
[1735660417711,0.7616,3420.8,3419.8,0.7695]
[1735660418007,2.92358,3420.5,3419.8,0.7695]
[1735660418866,2.92365,3420.4,3419.8,0.7695]
[1735660419809,2.92348,3420.6,3419.8,0.7695]
[1735660420310,2.92336,3420.8,3419.8,1.2058145]
[1735660420612,2.92336,3420.8,3419.8,3.69356]
[1735660421511,2.92336,3420.8,3419.5,0.669405]
[1735660421512,3.7556,3421.1,3419.6,0.7661]
[1735660421717,2.9231,3421.1,3419.6,0.7661]
[1735660421888,2.9231,3421.1,3420.1,2.92381]
[1735660422217,1.83883384,3421.2,3420.3,2.92369]
[1735660422420,2.9229,3421.3,3420.4,3.68972]
[1735660422723,2.9229,3421.3,3420.5,0.7661]
[1735660424489,2.9228,3421.4,3420.5,0.7661]
[1735660424705,2.92267,3421.6,3420.7,0.7661]
[1735660425018,2.92269,3421.5,3420.7,0.7661]
[1735660425675,2.92301,3421.2,3420.7,0.7661]
[1735660426699,2.81401176,3421.6,3420.7,0.7661]
[1735660426880,2.92305,3421.1,3420.7,0.7661]
[1735660427132,2.92289,3421.3,3420.7,0.7661]
[1735660427567,2.92307,3421.1,3420.7,0.7661]
[1735660427817,2.92318,3421.0,3420.7,0.7661]
[1735660428324,4.6528456,3421.6,3420.7,0.7661]
[1735660428820,2.92312,3421.1,3420.7,0.7661]
[1735660429467,2.92289,3421.3,3420.7,0.7661]
[1735660430491,2.92269,3421.5,3420.7,0.7661]
[1735660430700,2.92309,3421.1,3420.7,0.7661]
[1735660430927,2.81401176,3421.6,3420.7,0.7661]
[1735660431231,2.92321,3420.9,3420.7,0.7661]
[1735660431381,2.81401176,3421.6,3420.7,0.7661]
[1735660431581,1.83883384,3421.5,3420.7,0.7661]
[1735660432034,2.92289,3421.3,3420.7,0.7661]
[1735660434302,2.92297,3421.2,3420.7,0.7661]
[1735660435128,4.76165384,3421.4,3420.7,0.7661]
[1735660436029,1.83883384,3421.2,3420.7,0.7661]
[1735660438289,1.83883384,3421.2,3420.8,0.368961]
[1735660439044,1.83883384,3421.2,3420.7,0.7661]
[1735660439045,2.92309,3421.1,3420.7,0.7661]
[1735660439523,4.76174384,3421.3,3420.7,0.7661]
[1735660440436,1.83883384,3421.0,3420.7,0.7661]
[1735660441633,1.83883384,3421.2,3420.7,0.7661]
[1735660444131,1.83883384,3421.3,3420.7,0.7661]
[1735660444438,4.76171384,3421.3,3420.7,0.7661]
[1735660444999,1.83883384,3421.2,3420.7,0.7661]
[1735660445311,1.83883384,3421.2,3420.7,1.071983]
[1735660445508,1.83883384,3421.2,3420.8,0.7506]
[1735660445837,1.83883384,3421.2,3420.9,0.7506]
[1735660447344,1.83883384,3421.2,3421.0,2.92304]
[1735660447525,1.83883384,3421.2,3421.1,3.74503]
[1735660447712,7.21272229,3422.2,3421.1,3.74503]
[1735660447713,1.83883384,3421.5,3421.2,0.822]
[1735660449461,3.06472307,3421.8,3421.2,0.822]
[1735660449462,1.83883384,3422.0,3421.3,0.798]
[1735660449907,1.83883384,3422.0,3421.4,0.798]
[1735660450322,1.83883384,3422.0,3421.6,2.9226]
[1735660450613,1.83883384,3422.1,3421.8,0.798]
[1735660452111,1.83883384,3422.6,3421.8,0.798]
[1735660452311,1.83883384,3422.6,3421.8,3.72036]
[1735660452911,1.83883384,3422.6,3421.8,0.798]
[1735660453230,5.37346845,3422.7,3421.8,0.798]
[1735660453231,2.92169,3422.7,3421.8,0.798]
[1735660453843,2.92202,3422.3,3421.8,0.798]
[1735660454034,2.81401176,3422.7,3421.8,0.798]
[1735660454229,2.92185,3422.5,3421.8,0.798]
[1735660454431,2.92195,3422.4,3421.8,0.798]
[1735660455230,2.92177,3422.6,3421.8,0.798]
[1735660457425,2.92177,3422.6,3421.8,1.170065]
[1735660457715,1.83883384,3422.7,3421.8,0.798]
[1735660457916,2.92176,3422.6,3421.8,0.798]
[1735660458722,1.83883384,3422.8,3421.8,0.798]
[1735660458876,2.92168,3422.7,3421.8,0.798]
[1735660459623,5.66073384,3422.9,3421.8,0.798]
[1735660459771,2.92176,3422.6,3421.8,0.798]
[1735660460315,2.92161,3422.8,3421.8,0.798]
[1735660460811,3.8219,3422.9,3421.8,0.798]
[1735660461172,2.92183,3422.6,3421.8,0.798]
[1735660462269,2.92161,3422.8,3421.8,2.92242]
[1735660462470,2.92161,3422.8,3421.9,0.798]
[1735660463874,4.76026384,3423.0,3422.1,2.92217]
[1735660464232,1.83883384,3423.0,3422.3,0.7765]
[1735660464569,1.83883384,3423.0,3422.4,3.69841]
[1735660464837,1.83883384,3423.0,3422.6,0.7765]
[1735660465021,1.83883384,3423.3,3422.6,0.7765]
[1735660466023,4.75999384,3423.3,3422.6,0.7765]
[1735660466220,2.92116,3423.3,3422.6,0.7765]
[1735660466919,3.0280056,3423.5,3422.6,0.7765]
[1735660467228,2.92113,3423.4,3422.6,0.7765]
[1735660467427,2.92123,3423.3,3422.6,0.7765]
[1735660468526,2.92119,3423.3,3422.7,0.369839]
[1735660468732,2.92117,3423.3,3422.6,0.7765]
[1735660469725,3.0280056,3423.5,3422.6,0.7765]
[1735660469939,2.92131,3423.2,3422.6,0.7765]
[1735660472394,5.73525176,3423.2,3422.6,0.7765]
[1735660472596,5.73525176,3423.2,3421.3,5.73679176]
[1735660472597,2.92173,3422.7,3421.9,0.7765]
[1735660472859,2.81401176,3422.9,3421.9,1.146404]
[1735660473003,2.81401176,3422.9,3421.9,0.7765]
[1735660473528,2.92191,3422.5,3421.9,0.7765]
[1735660473905,2.92193,3422.4,3421.9,0.7765]
[1735660474101,2.92174,3422.7,3421.9,0.7765]
[1735660474435,3.7525,3423.1,3421.9,0.7765]
[1735660474934,2.92157,3422.9,3422.0,0.7765]
[1735660475147,2.81401176,3423.2,3422.1,0.7765]
[1735660475288,1.83327447,3423.1,3422.1,0.7765]
[1735660476354,5.25837772,3423.2,3422.1,0.7765]
[1735660476355,2.92155,3422.9,3422.1,0.7765]
[1735660476498,2.92155,3422.9,3422.1,1.146377]
[1735660476708,2.81401176,3423.2,3422.1,1.146377]
[1735660476903,2.92159,3422.8,3422.1,1.146377]
[1735660477258,2.9217,3422.7,3422.1,0.7765]
[1735660477549,2.81401176,3422.9,3422.1,0.7765]
[1735660477754,2.9218,3422.6,3422.1,0.7765]
[1735660479363,2.92165,3422.8,3422.1,0.7765]
[1735660479658,2.92168,3422.7,3422.1,0.7765]
[1735660480530,2.9217,3422.7,3422.1,0.7765]
[1735660481170,2.81401176,3422.9,3422.1,0.7765]
[1735660481314,2.9219,3422.5,3422.1,0.7765]
[1735660482466,2.81401176,3422.9,3422.1,0.7765]
[1735660482629,2.81401176,3422.6,3421.2,0.7576]
[1735660482967,2.92215,3422.2,3421.2,0.7576]
[1735660483144,2.92215,3422.2,3421.3,3.68044]
[1735660483347,2.92215,3422.2,3421.4,1.125644]
[1735660483529,2.92215,3422.2,3421.5,0.7576]
[1735660483733,2.92197,3422.4,3421.5,2.92268]
[1735660484042,2.92197,3422.4,3421.6,0.7576]
[1735660484250,2.92197,3422.4,3421.8,0.7576]
[1735660485665,2.92201,3422.3,3421.8,0.7576]
[1735660486158,2.92212,3422.2,3421.8,0.7576]
[1735660486515,2.92218,3422.1,3421.8,0.7576]
[1735660487718,2.92219,3422.1,3421.1,2.92301]
[1735660488028,2.92242,3421.9,3421.3,0.7576]
[1735660488968,2.92244,3421.8,3421.3,0.7576]
[1735660489329,2.92229,3422.0,3421.3,0.7576]
[1735660489951,4.75556447,3422.0,3421.3,0.7576]
[1735660490866,1.83327447,3422.0,3421.3,0.7576]
[1735660491162,2.92252,3421.7,3421.3,0.7576]
[1735660491517,3.35015404,3421.9,3421.3,0.7576]
[1735660491914,2.92239,3421.9,3421.3,0.7576]
[1735660492118,1.83327447,3422.0,3421.3,0.7576]
[1735660492553,4.75577447,3421.8,3421.3,0.7576]
[1735660493257,2.81401176,3421.7,3421.3,0.7576]
[1735660493426,2.9227,3421.5,3421.1,0.7878]
[1735660495886,4.75597447,3421.5,3421.1,0.7878]
[1735660496684,2.9227,3421.5,3421.1,0.7878]
[1735660497050,1.83327447,3421.6,3421.1,0.7878]
[1735660497486,1.83327447,3421.6,3421.1,1.158887]
[1735660497769,1.83327447,3421.7,3421.1,1.158887]
[1735660497976,1.83327447,3421.7,3421.2,0.7878]
[1735660498176,4.75565447,3421.9,3421.2,0.7878]
[1735660498387,1.83327447,3421.9,3421.2,0.7878]
[1735660498915,1.83327447,3421.9,3421.3,2.92278]
[1735660499404,1.83327447,3422.1,3421.3,3.293838]
[1735660499803,1.83327447,3422.1,3421.2,0.7878]
[1735660500321,2.92279,3421.4,3421.2,0.7878]
[1735660500452,2.92279,3421.4,3420.9,0.7878]
[1735660500649,2.92293,3421.3,3420.9,0.7878]
[1735660501177,0.8314,3421.3,3420.6,0.7878]
[1735660501505,2.92315,3421.0,3420.6,0.7878]
[1735660502297,2.92298,3421.2,3420.6,0.7878]
[1735660502648,2.92298,3421.2,3420.6,2.92346]
[1735660502649,1.83327447,3421.2,3420.6,2.92346]
[1735660502945,1.83327447,3421.2,3420.7,0.7878]
[1735660503312,1.83327447,3421.2,3420.8,0.7878]
[1735660503520,2.92255,3421.7,3420.8,1.158911]
[1735660503521,1.83327447,3421.6,3420.8,1.158911]
[1735660504112,1.83327447,3421.6,3420.8,0.7878]
[1735660504404,5.73656176,3421.7,3420.8,0.7878]
[1735660504635,5.73687176,3421.4,3420.8,0.7878]
[1735660504947,2.92264,3421.6,3420.8,0.7878]
[1735660505139,2.92271,3421.5,3420.8,0.7878]
[1735660506063,2.9227,3421.5,3420.8,0.7878]
[1735660506364,2.92296,3421.2,3420.8,0.7878]
[1735660507591,2.9228,3421.4,3420.8,0.7878]
[1735660507917,2.92295,3421.2,3420.8,0.7878]
[1735660508113,4.83327447,3421.6,3420.8,0.7878]
[1735660508317,0.8064,3421.4,3420.8,0.7878]
[1735660508517,2.92298,3421.2,3420.8,0.7878]
[1735660509480,2.92305,3421.1,3420.8,0.7878]
[1735660509686,2.92325,3420.9,3420.1,0.7655]
[1735660510420,2.92307,3421.1,3420.1,0.7655]
[1735660510626,2.92307,3421.1,3420.2,0.7655]
[1735660511259,2.92289,3421.3,3420.3,0.7655]
[1735660511465,2.92289,3421.3,3420.2,2.92373]
[1735660511466,4.75600447,3421.5,3420.4,0.7655]
[1735660511635,4.75600447,3421.5,3420.5,0.7655]
[1735660511822,4.75600447,3421.5,3420.5,3.68899]
[1735660512023,2.92273,3421.5,3420.7,0.7655]
[1735660512325,1.83327447,3421.7,3420.9,2.9232]
[1735660512522,1.83327447,3421.7,3421.0,0.7655]
[1735660512737,1.83327447,3421.7,3421.3,0.7655]
[1735660513622,2.92245,3421.8,3421.3,0.7655]
[1735660513823,2.92256,3421.7,3421.3,0.7655]
[1735660515142,2.81401176,3422.0,3421.3,0.7655]
[1735660515347,2.92236,3421.9,3421.3,0.7655]
[1735660516314,3.8064,3421.9,3420.7,0.7655]
[1735660516455,2.92276,3421.5,3420.7,0.7655]
[1735660516651,2.92287,3421.3,3420.7,0.7655]
[1735660516849,5.73657176,3421.7,3420.7,0.7655]
[1735660516850,3.0,3421.6,3420.7,0.7655]
[1735660517083,0.8064,3421.3,3420.7,0.7655]
[1735660517599,2.81401176,3421.1,3420.4,0.7655]
[1735660517760,2.92354,3420.6,3420.0,0.7655]
[1735660517966,2.92331,3420.8,3420.0,0.7655]
[1735660518377,2.92319,3421.0,3420.0,0.7655]
[1735660518589,2.92337,3420.7,3420.0,0.7655]
[1735660519397,5.22034103,3421.1,3420.0,0.7655]
[1735660519585,2.92348,3420.6,3420.0,0.7655]
[1735660519783,2.92355,3420.5,3420.0,0.7655]
[1735660520801,1.83327447,3420.9,3420.0,0.7655]
[1735660521307,2.92344,3420.7,3420.0,0.7655]
[1735660521749,1.83327447,3420.8,3420.0,0.7655]
[1735660521986,1.83327447,3420.8,3419.7,0.7655]
[1735660522281,1.83327447,3420.8,3420.2,0.7655]
[1735660522430,1.83327447,3420.9,3420.2,0.7655]
[1735660522714,1.83327447,3420.9,3420.3,0.368936]
[1735660523253,2.92314,3421.0,3420.3,0.368936]
[1735660523575,2.92323,3420.9,3420.3,0.368936]
[1735660523885,2.92307,3421.1,3420.2,0.7655]
[1735660524252,2.92313,3421.0,3420.2,0.7655]
[1735660524703,6.15952988,3421.3,3420.2,0.7655]
[1735660524909,2.92332,3420.8,3420.2,0.7655]
[1735660525473,5.73708176,3421.1,3420.2,0.7655]
[1735660525819,2.92338,3420.7,3420.2,0.7655]
[1735660525986,2.81401176,3421.1,3420.2,0.7655]
[1735660526304,5.73707176,3421.1,3420.2,0.7655]
[1735660526679,2.81401176,3420.8,3420.2,0.7655]
[1735660526858,2.81401176,3420.8,3419.8,0.7844]
[1735660526859,2.92376,3420.3,3419.8,0.7844]
[1735660527060,2.92337,3420.7,3419.8,0.7844]
[1735660527061,0.7917,3420.4,3419.8,0.7844]
[1735660527266,2.92389,3420.1,3419.8,0.7844]
[1735660528112,0.7917,3420.4,3419.8,0.7844]
[1735660528113,2.9237,3420.4,3419.8,0.7844]
[1735660528490,2.92372,3420.3,3419.8,0.7844]
[1735660528796,2.92377,3420.3,3419.8,0.7844]
[1735660529123,2.92381,3420.2,3419.8,0.7844]
[1735660529291,0.4267598,3420.3,3419.8,0.7844]
[1735660529611,2.92399,3420.0,3419.8,0.7844]
[1735660530261,2.92424,3419.7,3419.1,0.7844]
[1735660530509,2.92421,3419.8,3419.1,0.7844]
[1735660530661,2.92424,3419.7,3419.1,0.7844]
[1735660531012,0.36057118,3419.8,3419.1,0.7844]
[1735660531159,2.92409,3419.9,3419.1,0.7844]
[1735660531361,4.75716447,3420.1,3419.1,0.7844]
[1735660531589,2.81401176,3419.9,3419.1,0.7844]
[1735660531793,2.92436,3419.6,3419.1,0.7844]
[1735660532000,2.92416,3419.8,3419.1,0.7844]
[1735660532378,2.924,3420.0,3419.1,0.7844]
[1735660532604,1.83327447,3419.8,3419.2,0.7844]
[1735660533776,2.92392,3420.1,3419.2,0.7844]
[1735660535342,2.92392,3420.1,3419.3,0.7844]
[1735660535545,7.75702447,3420.3,3419.3,0.7844]
[1735660535856,7.75702447,3420.3,3419.4,0.370904]
[1735660536045,2.92383,3420.2,3419.4,0.370904]
[1735660536241,2.9239,3420.1,3419.4,0.370904]
[1735660536572,2.92408,3419.9,3419.3,0.7844]
[1735660536780,2.92429,3419.7,3419.3,0.7844]
[1735660539180,2.92407,3419.9,3419.3,0.7844]
[1735660539573,2.9239,3420.1,3419.3,0.7844]
[1735660540592,1.83327447,3420.2,3419.3,0.7844]
[1735660540737,1.83327447,3420.2,3419.4,0.8193]
[1735660541084,5.92374,3420.3,3419.6,0.8193]
[1735660541290,4.75683447,3420.5,3419.6,0.8193]
[1735660541590,1.83327447,3420.5,3419.8,0.8193]
[1735660541934,2.92339,3420.7,3419.8,0.8193]
[1735660542139,1.83327447,3420.8,3420.0,0.8193]
[1735660542675,2.92347,3420.6,3420.0,0.8193]
[1735660543041,1.83327447,3420.8,3420.0,0.8193]
[1735660543042,4.75663447,3420.8,3420.0,0.8193]
[1735660543505,2.92336,3420.8,3420.0,0.8193]
[1735660544680,2.9234,3420.7,3420.0,0.8193]
[1735660544985,5.73709176,3421.1,3420.0,0.8193]
[1735660544986,2.92348,3420.6,3420.0,0.8193]
[1735660546270,2.64827447,3421.0,3420.0,0.8193]
[1735660546458,2.92355,3420.5,3420.0,0.8193]
[1735660546785,2.81401176,3420.8,3420.0,0.8193]
[1735660546987,2.92366,3420.4,3420.0,0.8193]
[1735660547294,2.92347,3420.6,3420.0,0.8193]
[1735660547587,0.7598,3420.4,3419.2,0.7525]
[1735660548110,2.92372,3420.3,3419.2,0.7525]
[1735660548315,2.92401,3420.0,3419.2,0.7525]
[1735660548473,2.92372,3420.3,3419.2,0.7525]
[1735660548673,2.92409,3419.9,3419.2,0.7525]
[1735660549004,2.92409,3419.9,3419.3,0.7525]
[1735660549204,0.7598,3420.4,3419.3,0.7525]
[1735660549414,2.92392,3420.1,3419.3,0.7525]
[1735660549619,1.83327447,3420.5,3419.3,0.7525]
[1735660549762,1.83327447,3420.5,3419.7,2.92416]
[1735660549974,1.83327447,3420.5,3419.9,0.7525]
[1735660550513,1.83327447,3420.5,3420.1,0.7525]
[1735660550919,1.83327447,3421.0,3420.2,0.7525]
[1735660551469,1.83327447,3421.0,3420.3,2.9237]
[1735660551704,1.83327447,3421.0,3420.5,0.7525]
[1735660552106,1.83327447,3421.4,3420.5,0.7525]
[1735660552355,1.83327447,3421.4,3420.4,2.92363]
[1735660552492,1.83327447,3421.4,3420.6,0.7525]
[1735660552842,1.83327447,3421.4,3420.8,0.7525]
[1735660553443,2.92271,3421.5,3420.8,0.7525]
[1735660554234,1.83327447,3421.7,3421.0,0.757]
[1735660554391,1.83327447,3421.8,3421.0,0.757]
[1735660555214,2.92257,3421.7,3421.0,0.757]
[1735660555723,2.92235,3421.9,3421.0,0.757]
[1735660556246,2.92281,3421.4,3421.0,0.757]
[1735660556627,0.7988,3421.6,3421.0,0.757]
[1735660556837,2.92287,3421.3,3421.0,0.757]
[1735660557964,2.92271,3421.5,3421.0,0.757]
[1735660558091,1.83327447,3421.7,3421.0,0.757]
[1735660558505,4.75587447,3421.7,3421.0,0.757]
[1735660558806,1.83327447,3421.7,3421.0,0.757]
[1735660559010,2.92276,3421.5,3421.0,0.757]
[1735660559237,2.92292,3421.3,3421.0,0.757]
[1735660559420,3.60455202,3421.7,3421.0,0.757]
[1735660559637,2.92259,3421.7,3421.0,0.757]
[1735660559835,2.92264,3421.6,3421.0,0.757]
[1735660560040,2.92272,3421.5,3421.0,0.757]
[1735660560244,2.9228,3421.4,3421.0,0.757]
[1735660560446,0.29228,3421.3,3421.0,0.757]
[1735660560651,2.9228,3421.4,3421.0,0.757]
[1735660561244,4.83327447,3421.9,3421.0,0.757]
[1735660561440,2.92285,3421.4,3421.0,0.757]
[1735660561637,2.92287,3421.3,3421.0,0.757]
[1735660561811,0.292287,3421.2,3421.0,0.757]
[1735660562137,2.92289,3421.3,3421.0,0.757]
[1735660562912,2.92278,3421.4,3420.2,0.757]
[1735660563138,2.92324,3420.9,3420.2,0.757]
[1735660563358,2.92303,3421.1,3420.2,0.757]
[1735660563558,2.92323,3420.9,3420.2,0.757]
[1735660563732,2.92323,3420.9,3420.2,1.1327]
[1735660564285,2.92307,3421.1,3420.3,0.757]
[1735660564925,4.75608447,3421.4,3420.4,2.92363]
[1735660565160,4.75608447,3421.4,3420.5,0.757]
[1735660565367,4.75608447,3421.4,3420.6,0.368063]
[1735660565570,1.83327447,3421.4,3420.7,0.757]
[1735660565770,1.83327447,3421.4,3420.8,0.757]
[1735660566140,4.75580447,3421.7,3420.8,0.757]
[1735660566369,4.75580447,3421.7,3420.9,0.36803]
[1735660566787,2.92267,3421.6,3420.9,0.36803]
[1735660566976,2.92267,3421.6,3420.8,0.757]
[1735660574735,2.92247,3421.8,3420.8,0.757]
[1735660575038,2.92247,3421.8,3421.0,0.8113]
[1735660575943,1.83327447,3422.0,3421.1,2.92297]
[1735660576149,1.83327447,3422.0,3420.8,2.80575202]
[1735660576440,1.83327447,3422.0,3421.0,0.8113]
[1735660576591,1.83327447,3422.0,3421.3,0.8113]
[1735660576990,5.36648596,3422.2,3421.3,0.8113]
[1735660576991,2.92212,3422.2,3421.3,0.8113]
[1735660577336,2.92212,3422.2,3421.3,2.92286]
[1735660577489,2.92212,3422.2,3421.4,0.8113]
[1735660577691,2.92218,3422.1,3421.4,0.8113]
[1735660578131,2.92207,3422.3,3421.4,0.8113]
[1735660578693,2.92212,3422.2,3421.4,0.8113]
[1735660578894,7.56081649,3422.6,3421.4,0.8113]
[1735660578895,1.83327447,3422.6,3421.4,0.8113]
[1735660579191,1.83327447,3422.6,3421.8,0.8113]
[1735660579355,1.83327447,3422.6,3421.7,2.80575202]
[1735660579566,1.83327447,3422.6,3421.5,0.673411]
[1735660579567,1.83327447,3422.6,3422.1,0.8113]
[1735660580291,0.57946888,3423.1,3422.1,0.8113]
[1735660580490,2.92159,3422.8,3422.1,0.8113]
[1735660580790,2.92171,3422.7,3422.1,0.8113]
[1735660580946,2.92177,3422.6,3422.1,0.8113]
[1735660582896,2.92162,3422.8,3422.1,0.8113]
[1735660583253,2.92179,3422.6,3422.1,0.8113]
[1735660583491,0.8051,3422.9,3422.1,0.8113]
[1735660583694,2.922,3422.4,3422.1,0.8113]
[1735660584694,0.8051,3422.9,3422.1,0.8113]
[1735660584895,2.92177,3422.6,3422.1,0.8113]
[1735660585969,2.92167,3422.7,3422.1,0.8113]
[1735660586169,2.92182,3422.6,3422.1,0.8113]
[1735660586369,2.80575202,3422.7,3421.4,3.0]
[1735660586567,2.92205,3422.3,3421.5,0.7826]
[1735660586781,3.7266,3422.9,3421.5,2.92266]
[1735660586967,3.7266,3422.9,3421.1,2.80575202]
[1735660586968,3.8051,3422.9,3421.7,0.7826]
[1735660587265,2.9218,3422.6,3421.7,0.7826]
[1735660588096,2.92184,3422.5,3421.7,0.7826]
[1735660588272,2.92193,3422.4,3421.7,0.7826]
[1735660588593,3.8051,3422.9,3421.7,0.7826]
[1735660588800,2.92201,3422.3,3421.7,0.7826]
[1735660589196,3.8051,3422.9,3421.7,1.153135]
[1735660589197,2.92187,3422.5,3421.7,1.153135]
[1735660589401,2.9217,3422.7,3421.8,0.7826]
[1735660590188,3.8051,3422.9,3421.8,0.7826]
[1735660590416,2.92184,3422.5,3421.8,0.7826]
[1735660590585,2.92194,3422.4,3421.8,0.7826]
[1735660590785,2.92201,3422.3,3421.8,0.7826]
[1735660592120,2.92233,3422.0,3421.8,0.7826]
[1735660592315,2.92226,3422.1,3421.2,0.7826]
[1735660592723,1.082501,3422.3,3421.2,0.7826]
[1735660592888,2.92209,3422.2,3421.2,0.7826]
[1735660593087,1.082501,3422.3,3421.2,0.7826]
[1735660593317,2.92225,3422.1,3421.2,0.7826]
[1735660594008,2.92225,3422.1,3421.3,0.7826]
[1735660594624,2.80575202,3422.0,3421.3,0.7826]
[1735660594942,2.92275,3421.5,3421.0,0.7876]
[1735660595131,2.92251,3421.8,3421.0,0.7876]
[1735660595307,2.92229,3422.0,3421.0,2.92805]
[1735660595546,2.9221,3422.2,3421.2,2.92292]
[1735660595691,2.92224,3422.1,3421.3,0.7826]
[1735660596139,1.83327447,3422.0,3421.3,0.7826]
[1735660596591,1.83327447,3422.0,3421.4,0.7826]
[1735660597158,4.75539447,3422.2,3421.4,0.7826]
[1735660597463,1.83327447,3422.2,3421.6,0.7826]
[1735660598569,2.92203,3422.3,3421.6,0.7826]
[1735660599262,5.34630169,3422.5,3421.6,0.7826]
[1735660599631,4.75517447,3422.5,3421.6,0.7826]
[1735660599813,4.75517447,3422.5,3421.5,3.293215]
[1735660599814,4.75517447,3422.5,3421.8,0.7533]